bitfinex/quotes_BTCUSD_20250513
["timestamp","ask_amount","ask_price","bid_price","bid_amount"]
[1747104170329,0.65559357,102040.0,102030.0,0.05089479]
[1747104170737,0.21973927,102040.0,102030.0,0.05089479]
[1747104172835,0.21973927,102040.0,102030.0,0.03519479]
[1747104176633,0.21973927,102040.0,102030.0,0.01929479]
[1747104177258,0.21973927,102040.0,102030.0,0.03579479]
[1747104178095,0.21973927,102040.0,102030.0,0.01929479]
[1747104178841,0.21973927,102040.0,102030.0,0.02427427]
[1747104179071,0.21973927,102040.0,102030.0,0.04007427]
[1747104179522,0.21973927,102040.0,102030.0,0.05587427]
[1747104180659,0.21973927,102040.0,102030.0,0.05089479]
[1747104181214,0.21973927,102040.0,102030.0,0.01929479]
[1747104182499,0.31559357,102040.0,102030.0,0.01929479]
[1747104182725,0.34679357,102040.0,102030.0,0.01929479]
[1747104185538,0.33069357,102040.0,102030.0,0.01929479]
[1747104185908,0.34579357,102040.0,102030.0,0.01929479]
[1747104186707,0.68579357,102040.0,102030.0,0.01929479]
[1747104186913,0.96535677,102040.0,102030.0,0.01929479]
[1747104187273,0.87963656,102040.0,102030.0,0.01929479]
[1747104188314,1.04619355,102040.0,102030.0,0.01929479]
[1747104188537,1.55347355,102040.0,102030.0,0.01929479]
[1747104188984,1.38691656,102040.0,102030.0,0.01929479]
[1747104189360,1.47315873,102040.0,102030.0,0.01529479]
[1747104189559,1.47615873,102040.0,102030.0,0.01529479]
[1747104190013,1.47515873,102040.0,102030.0,0.01129479]
[1747104190339,1.47815873,102040.0,102030.0,0.01229479]
[1747104197102,1.75195789,102040.0,102030.0,0.01229479]
[1747104197337,1.49815873,102040.0,102030.0,0.01229479]
[1747104197835,1.75195789,102040.0,102030.0,0.00444856]
[1747104198065,0.58766444,102010.0,102000.0,0.00400069]
[1747104198324,1.3778839,102010.0,102000.0,0.00448891]
[1747104198783,0.20590234,101990.0,101980.0,0.03194891]
[1747104199015,0.20590234,101990.0,101980.0,0.03209529]
[1747104200425,0.20590234,101990.0,101980.0,0.28589445]
[1747104200877,0.20890234,101990.0,101980.0,0.29589445]
[1747104201123,0.20890234,101990.0,101980.0,0.04209529]
[1747104204379,0.18047734,101990.0,101980.0,0.04209529]
[1747104204528,0.19028203,101990.0,101980.0,0.04209529]
[1747104204737,0.19028203,101990.0,101980.0,0.09522075]
[1747104204932,0.19028203,101990.0,101980.0,0.04209529]
[1747104210774,0.28613633,101990.0,101980.0,0.02614638]
[1747104211007,0.28613633,101990.0,101980.0,0.01014638]
[1747104211245,0.64123633,101990.0,101980.0,0.01014638]
[1747104211470,0.9018478,101990.0,101980.0,0.01014638]
[1747104211695,0.8988478,101990.0,101980.0,0.00014638]
[1747104211927,0.9008478,101990.0,101980.0,0.00714638]
[1747104212153,0.64804864,101990.0,101980.0,0.00714638]
[1747104212408,0.64604864,101990.0,101980.0,0.00014638]
[1747104212604,0.87000864,101990.0,101980.0,0.00614638]
[1747104212872,1.1238078,101990.0,101980.0,0.00614638]
[1747104215462,1.1208078,101990.0,101980.0,0.00014638]
[1747104215691,1.1248078,101990.0,101980.0,0.00014638]
[1747104215920,0.85540864,101990.0,101980.0,0.00014638]
[1747104216155,0.85540864,101990.0,101980.0,0.01624638]
[1747104216156,0.63394864,101990.0,101980.0,0.01624638]
[1747104216383,0.63394864,101990.0,101980.0,0.03224638]
[1747104220301,0.29394864,101990.0,101980.0,0.03224638]
[1747104220532,0.19809434,101990.0,101980.0,0.33524376]
[1747104220988,0.19128203,101990.0,101980.0,0.33524376]
[1747104221227,0.19128203,101990.0,101980.0,0.54590149]
[1747104221460,0.21970674,101990.0,101980.0,0.51631437]
[1747104221694,0.21970674,101990.0,101980.0,0.50650892]
[1747104221954,0.21970674,101990.0,101980.0,0.51631437]
[1747104222392,0.21670674,101990.0,101980.0,0.51631437]
[1747104222393,0.21570674,101990.0,101980.0,0.50650892]
[1747104222627,0.20690234,101990.0,101980.0,0.49670327]
[1747104222863,0.19809765,101990.0,101980.0,0.30558639]
[1747104223092,0.19809765,101990.0,101980.0,0.03724638]
[1747104223324,0.29395195,101990.0,101980.0,0.03724638]
[1747104223801,0.30075257,101990.0,101980.0,0.03724638]
[1747104225977,0.20489827,101990.0,101980.0,0.08714129]
[1747104226237,0.20489827,101990.0,101980.0,0.10168214]
[1747104226474,0.20790234,101990.0,101980.0,0.52131446]
[1747104226712,0.20790234,101990.0,101980.0,0.51150901]
[1747104227173,0.20790234,101990.0,101980.0,0.52131466]
[1747104227626,0.20790234,101990.0,101980.0,0.51150901]
[1747104229450,0.20790234,101990.0,101980.0,0.52131466]
[1747104230501,0.02160909,101990.0,101980.0,0.53112011]
[1747104230735,0.002,101990.0,101980.0,0.54092528]
[1747104230958,0.0314128,101990.0,101980.0,0.74708528]
[1747104232119,0.0314128,101990.0,101980.0,1.14708528]
[1747104232336,0.04121749,101990.0,101980.0,1.24293958]
[1747104233036,0.0314128,101990.0,101980.0,1.24293958]
[1747104233270,0.002,101990.0,101980.0,1.27879388]
[1747104233948,0.002,101990.0,101980.0,1.67879388]
[1747104234163,0.002,101990.0,101980.0,1.69317747]
[1747104234381,0.02940685,102010.0,102000.0,0.22548902]
[1747104234584,0.29095868,102030.0,102010.0,0.23020548]
[1747104234793,0.30075943,102030.0,102020.0,0.4976404]
[1747104235048,0.30075943,102030.0,102020.0,0.29964001]
[1747104235729,0.29395881,102030.0,102020.0,0.29964001]
[1747104235938,0.21714125,102030.0,102020.0,0.31595557]
[1747104236157,0.02108767,102030.0,102020.0,0.58935766]
[1747104236374,0.02108767,102030.0,102020.0,0.78567634]
[1747104236375,0.03088889,102030.0,102020.0,0.78567634]
[1747104236583,0.03088889,102030.0,102020.0,0.79556695]
[1747104236998,0.22691024,102030.0,102020.0,0.78576534]
[1747104237196,0.23391024,102030.0,102020.0,0.79656695]
[1747104237410,0.23391024,102030.0,102020.0,0.80636846]
[1747104237635,0.22591024,102030.0,102020.0,0.80536846]
[1747104237826,0.21910969,102030.0,102020.0,0.78676534]
[1747104238021,0.22410969,102030.0,102020.0,0.79656695]
[1747104238726,0.22410969,102030.0,102020.0,0.78676534]
[1747104238947,0.22410969,102030.0,102020.0,0.79656695]
[1747104239186,0.01828779,102030.0,102020.0,0.80636827]
[1747104239372,0.02808805,102030.0,102020.0,0.80636827]
[1747104239514,0.0182875,102030.0,102020.0,0.80636827]
[1747104239729,0.02808805,102030.0,102020.0,0.80636827]
[1747104240449,0.0378888,102030.0,102020.0,0.80636827]
[1747104240660,0.04768964,102030.0,102020.0,0.80636827]
[1747104240892,0.0378888,102030.0,102020.0,0.80636827]
[1747104241922,0.23390957,102030.0,102020.0,0.48829667]
[1747104242130,0.23391005,102030.0,102020.0,0.72249251]
[1747104242328,0.23391005,102030.0,102020.0,0.73229412]
[1747104242532,0.23391005,102030.0,102020.0,0.001]
[1747104242739,0.2241095,102030.0,102020.0,0.001]
[1747104242939,0.2241095,102030.0,102020.0,0.0172]
[1747104244210,0.2241095,102030.0,102020.0,0.001]
[1747104244417,0.3527638,102030.0,102020.0,0.001]
[1747104245623,0.3364638,102030.0,102020.0,0.001]
[1747104246020,0.3199638,102030.0,102020.0,0.001]
[1747104246495,0.2241095,102030.0,102020.0,0.0174]
[1747104246697,0.2241095,102030.0,102020.0,0.55585793]
[1747104246910,0.21430875,102030.0,102020.0,0.57039878]
[1747104247321,0.20450791,102030.0,102020.0,0.35475518]
[1747104247523,0.20450791,102030.0,102020.0,0.36455717]
[1747104247892,0.20450791,102030.0,102020.0,0.311942]
[1747104249368,0.01828817,102030.0,102020.0,0.53738702]
[1747104249787,0.22410969,102030.0,102020.0,0.5275856]
[1747104250016,0.22410969,102030.0,102020.0,0.74346711]
[1747104250017,0.02808892,102030.0,102020.0,0.74346711]
[1747104250253,0.02808892,102030.0,102020.0,0.84912283]
[1747104250483,0.00848714,102030.0,102020.0,0.94497646]
[1747104250709,0.02808815,102030.0,102020.0,0.94497646]
[1747104250943,0.00848714,102030.0,102020.0,0.94497646]
[1747104251165,0.0182875,102030.0,102020.0,0.94497646]
[1747104251392,0.01828731,102030.0,102020.0,1.28497646]
[1747104251842,0.01828731,102030.0,102020.0,1.68497646]
[1747104252077,0.00848714,102030.0,102020.0,1.93877562]
[1747104252312,0.00848714,102030.0,102020.0,1.68497646]
[1747104253595,0.00848714,102030.0,102020.0,1.93877562]
[1747104254734,0.00048714,102030.0,102020.0,1.93777562]
[1747104254953,0.00148714,102030.0,102020.0,1.94177562]
[1747104255181,0.00348714,102030.0,102020.0,1.93777562]
[1747104255424,0.00148714,102030.0,102020.0,1.93777562]
[1747104255652,0.310192,102090.0,102070.0,0.22114096]
[1747104255865,0.310192,102090.0,102070.0,0.26759272]
[1747104255866,0.21551617,102080.0,102070.0,0.26759272]
[1747104256069,0.02938745,102080.0,102070.0,0.55718502]
[1747104256282,0.23510844,102080.0,102070.0,0.53759188]
[1747104256492,0.22531288,102080.0,102070.0,0.52779507]
[1747104256707,0.22531288,102080.0,102070.0,0.52879507]
[1747104256913,0.22531288,102080.0,102070.0,0.52894145]
[1747104257357,0.21551703,102080.0,102070.0,0.52894145]
[1747104257793,0.21651703,102080.0,102070.0,0.53394145]
[1747104257990,0.20672099,102080.0,102070.0,0.32820049]
[1747104258241,0.19692476,102080.0,102070.0,0.47896639]
[1747104258462,0.19692476,102080.0,102070.0,0.00514638]
[1747104258698,0.32657906,102080.0,102070.0,0.00514638]
[1747104259346,0.92037822,102080.0,102070.0,0.00514638]
[1747104259564,0.92716732,102080.0,102070.0,0.00514638]
[1747104260209,1.13260732,102080.0,102070.0,0.00514638]
[1747104260431,0.87880816,102080.0,102070.0,0.00514638]
[1747104260677,1.13160732,102080.0,102070.0,0.00014638]
[1747104260895,0.88080816,102080.0,102070.0,0.00014638]
[1747104262241,0.87880816,102080.0,102070.0,0.00014638]
[1747104262456,1.44060732,102080.0,102070.0,0.00114638]
[1747104262672,1.74060732,102080.0,102070.0,0.00114638]
[1747104263090,1.76774961,102080.0,102070.0,0.00114638]
[1747104264092,1.18774961,102080.0,102070.0,0.00114638]
[1747104264245,1.18874961,102080.0,102070.0,0.00114638]
[1747104264887,1.19329046,102080.0,102070.0,0.00114638]
[1747104265130,0.21562216,102030.0,102020.0,0.175159]
[1747104265351,0.21562216,102030.0,102020.0,0.07945116]
[1747104266970,0.21662216,102030.0,102020.0,0.07945116]
[1747104267197,0.31247646,102030.0,102020.0,0.00114646]
[1747104267438,0.31347646,102030.0,102020.0,0.00714646]
[1747104268147,0.32026556,102030.0,102020.0,0.00714646]
[1747104268357,0.94686472,102030.0,102020.0,0.00714646]
[1747104270586,1.15234472,102030.0,102020.0,0.00714646]
[1747104271036,1.16724703,102030.0,102020.0,0.00714646]
[1747104271268,0.91344787,102030.0,102020.0,0.00714646]
[1747104271719,1.46724703,102030.0,102020.0,0.00714646]
[1747104272464,1.72104619,102030.0,102020.0,0.00714646]
[1747104272693,1.72104619,102030.0,101980.0,0.0166]
[1747104272694,0.21570674,101990.0,101980.0,0.0166]
[1747104272927,0.21570674,101990.0,101980.0,0.00048714]
[1747104272928,0.19609765,101990.0,101980.0,0.00048714]
[1747104273781,0.19709765,101990.0,101980.0,0.00848714]
[1747104273985,0.29495195,101990.0,101980.0,0.01648714]
[1747104274933,0.29295195,101990.0,101980.0,0.00848714]
[1747104275140,0.29395195,101990.0,101980.0,0.01648714]
[1747104275603,0.29295195,101990.0,101980.0,0.00848714]
[1747104276020,0.29395195,101990.0,101980.0,0.01448714]
[1747104276648,0.29395195,101990.0,101980.0,0.03098714]
[1747104277082,0.29395195,101990.0,101980.0,0.04618714]
[1747104278181,0.02160927,101990.0,101980.0,0.54202186]
[1747104278391,0.21770692,101990.0,101980.0,0.53025542]
[1747104278598,0.20790243,101990.0,101980.0,0.53025561]
[1747104278781,0.20790243,101990.0,101980.0,0.54006126]
[1747104279048,0.20790243,101990.0,101980.0,0.06072799]
[1747104281681,0.20790243,101990.0,101980.0,0.06268895]
[1747104282161,0.20790243,101990.0,101980.0,0.06072799]
[1747104282962,0.20790243,101990.0,101980.0,0.01448714]
[1747104283259,0.30375673,101990.0,101980.0,0.01448714]
[1747104283459,0.55755589,101990.0,101980.0,0.01448714]
[1747104283901,1.13377589,101990.0,101980.0,0.01448714]
[1747104284999,1.13277589,101990.0,101980.0,0.00648714]
[1747104285251,1.13477589,101990.0,101980.0,0.00748714]
[1747104285466,0.87997673,101990.0,101980.0,0.00148714]
[1747104285917,0.86437673,101990.0,101980.0,0.00148714]
[1747104286171,0.86737673,101990.0,101980.0,0.00248714]
[1747104287960,1.13627589,101990.0,101980.0,0.00248714]
[1747104288845,1.14304381,101990.0,101980.0,0.00248714]
[1747104293017,0.92282381,101990.0,101980.0,0.00248714]
[1747104293234,1.06364465,101990.0,101980.0,0.00248714]
[1747104293680,0.65352465,101990.0,101980.0,0.00248714]
[1747104293915,0.65352465,101990.0,101980.0,0.01858714]
[1747104294158,0.85852465,101990.0,101980.0,0.01858714]
[1747104294366,0.85852465,101990.0,101980.0,0.00248714]
[1747104294804,0.85175673,101990.0,101980.0,0.00248714]
[1747104296213,0.85855327,101990.0,101980.0,0.00248714]
[1747104296750,0.85855327,101990.0,101980.0,0.01858714]
[1747104296998,0.65355327,101990.0,101980.0,0.01858714]
[1747104297244,0.55769897,101990.0,101980.0,0.03508714]
[1747104297477,0.55769897,101990.0,101980.0,0.01858714]
[1747104298700,0.65355327,101990.0,101980.0,0.00248714]
[1747104299105,0.68078165,101990.0,101980.0,0.00248714]
[1747104300640,0.65355327,101990.0,101980.0,0.03368714]
[1747104300876,0.65355327,101990.0,101980.0,0.01868714]
[1747104301107,0.65355327,101990.0,101980.0,0.00248714]
[1747104301336,0.65355327,101990.0,101980.0,0.01868714]
[1747104302021,0.90735243,101990.0,101980.0,0.00248714]
[1747104302247,0.92235243,101990.0,101980.0,0.00248714]
[1747104302762,0.90735243,101990.0,101980.0,0.00248714]
[1747104302990,0.65455327,101990.0,101980.0,0.00248714]
[1747104303217,0.65455327,101990.0,101980.0,0.01838714]
[1747104303726,0.65455327,101990.0,101980.0,0.00248714]
[1747104303955,0.96777178,101990.0,101980.0,0.00248714]
[1747104304828,1.37773178,101990.0,101980.0,0.00248714]
[1747104305152,1.67773178,101990.0,101980.0,0.00248714]
[1747104305870,1.77473178,101990.0,101980.0,0.00148714]
[1747104306094,0.21583389,101930.0,101920.0,0.2525029]
[1747104306325,0.21583389,101930.0,101920.0,0.53090549]
[1747104306579,0.02943146,101930.0,101920.0,0.54153552]
[1747104306807,0.01961793,101940.0,101930.0,0.23037474]
[1747104307060,0.02942733,101940.0,101930.0,0.49398388]
[1747104307297,0.01961783,101940.0,101930.0,0.53765265]
[1747104307553,0.02942695,101940.0,101930.0,0.62141564]
[1747104307843,0.02942685,101940.0,101930.0,0.62141564]
[1747104308341,0.40783842,101960.0,101950.0,0.0314]
[1747104308558,0.50469272,101960.0,101950.0,0.0314]
[1747104309200,0.29985272,101960.0,101950.0,0.0314]
[1747104309402,0.20399842,101960.0,101950.0,0.49118228]
[1747104309620,0.20399842,101960.0,101950.0,0.28519916]
[1747104309834,0.20399842,101960.0,101950.0,0.0314]
[1747104309835,0.19720188,101960.0,101950.0,0.0314]
[1747104310659,0.003,101960.0,101950.0,0.57842164]
[1747104310862,0.02261427,101960.0,101950.0,0.57842164]
[1747104310999,0.03242174,101960.0,101950.0,0.52733962]
[1747104311218,0.01280699,101960.0,101950.0,0.52733962]
[1747104311437,0.003,101960.0,101950.0,0.52733962]
[1747104311675,0.003,101960.0,101950.0,0.73249962]
[1747104311898,0.003,101960.0,101950.0,0.82835392]
[1747104312099,0.003,101960.0,101950.0,0.92420822]
[1747104312520,0.003,101960.0,101950.0,1.26420822]
[1747104313113,0.002,101960.0,101950.0,1.26420822]
[1747104313518,0.002,101960.0,101950.0,1.17035392]
[1747104313718,0.0118069,101960.0,101950.0,1.57035392]
[1747104313923,0.0118069,101960.0,101950.0,1.57635392]
[1747104313924,0.0128069,101960.0,101950.0,1.57635392]
[1747104314832,0.0128069,101960.0,101950.0,1.09777837]
[1747104315043,0.2187702,101960.0,101950.0,0.05594085]
[1747104315258,0.2187702,101960.0,101950.0,0.05120863]
[1747104315502,0.2187702,101960.0,101950.0,0.54514854]
[1747104315925,0.2187702,101960.0,101950.0,0.5353402]
[1747104316129,0.02261427,101960.0,101950.0,0.64100284]
[1747104316335,0.02261409,101960.0,101950.0,0.65081089]
[1747104316540,0.0128069,101960.0,101950.0,0.65081089]
[1747104316743,0.02261409,101960.0,101950.0,0.65081089]
[1747104316950,0.24819205,101960.0,101950.0,0.6311945]
[1747104317170,0.21877068,101960.0,101950.0,0.30974001]
[1747104317395,0.21877068,101960.0,101950.0,0.51572332]
[1747104317608,0.21877068,101960.0,101950.0,0.26192416]
[1747104317813,0.21877068,101960.0,101950.0,0.27173279]
[1747104317993,0.21877068,101960.0,101950.0,0.29134937]
[1747104318257,0.21877068,101960.0,101950.0,0.52553195]
[1747104318667,0.21877068,101960.0,101950.0,0.54514853]
[1747104319106,0.21877068,101960.0,101950.0,0.27173279]
[1747104319321,0.21877068,101960.0,101950.0,0.28154113]
[1747104319523,0.21877068,101960.0,101950.0,0.29134928]
[1747104319927,0.21877068,101960.0,101950.0,0.27173279]
[1747104320291,0.21877068,101960.0,101950.0,0.29134956]
[1747104321401,0.21877068,101960.0,101950.0,0.29134966]
[1747104321586,0.21877068,101960.0,101950.0,0.3011579]
[1747104321725,0.21877068,101960.0,101950.0,0.29134966]
[1747104321932,0.19915535,101960.0,101950.0,0.05594085]
[1747104322540,0.19915535,101960.0,101950.0,0.01]
[1747104323619,0.29500965,101960.0,101950.0,0.01]
[1747104324340,0.59048281,101960.0,101950.0,0.01]
[1747104324749,0.34349397,101960.0,101950.0,0.01]
[1747104325762,0.31691997,101960.0,101950.0,0.004]
[1747104325964,0.00980882,101940.0,101930.0,0.54620279]
[1747104326171,0.01961677,101950.0,101940.0,0.27276258]
[1747104326488,0.03923288,101950.0,101940.0,0.49396174]
[1747104326690,0.01961601,101950.0,101940.0,0.49396174]
[1747104326882,0.03142281,101960.0,101950.0,0.26700795]
[1747104327130,0.22757816,101960.0,101950.0,0.51099906]
[1747104327324,0.002,101960.0,101950.0,0.64075875]
[1747104327458,0.001,101960.0,101950.0,0.64075875]
[1747104328061,0.02061409,101960.0,101950.0,0.64075875]
[1747104328280,0.02061399,101960.0,101950.0,0.64075875]
[1747104328485,0.02061399,101960.0,101950.0,0.54490445]
[1747104329101,0.02061399,101960.0,101950.0,0.94490445]
[1747104329102,0.001,101960.0,101950.0,0.94490445]
[1747104329306,0.001,101960.0,101950.0,0.94790445]
[1747104329522,0.02161409,101960.0,101950.0,1.04375875]
[1747104329727,0.03142147,101960.0,101950.0,1.04375875]
[1747104329937,0.04122904,101960.0,101950.0,1.23871089]
[1747104330171,0.04222904,101960.0,101950.0,1.26132709]
[1747104330610,0.24819206,101960.0,101950.0,1.13604825]
[1747104330850,0.04223038,101960.0,101950.0,1.1458564]
[1747104331262,0.03242262,101960.0,101950.0,1.15566445]
[1747104331492,0.03242262,101960.0,101950.0,0.75566445]
[1747104331688,0.01280709,101960.0,101950.0,0.85151875]
[1747104331900,0.02261437,101960.0,101950.0,0.85151875]
[1747104332254,0.03242184,101960.0,101950.0,0.75566445]
[1747104332661,0.003,101960.0,101950.0,0.75566445]
[1747104332862,0.03242184,101960.0,101950.0,0.75566445]
[1747104333130,0.03242174,101960.0,101950.0,0.75566445]
[1747104333303,0.02261427,101960.0,101950.0,0.75566445]
[1747104333462,0.03242174,101960.0,101950.0,0.75566445]
[1747104333873,0.03242174,101960.0,101950.0,1.15566445]
[1747104334098,0.02261427,101960.0,101950.0,1.15566445]
[1747104334516,0.01280699,101960.0,101950.0,1.25151875]
[1747104334742,0.03242184,101960.0,101950.0,1.15566445]
[1747104335824,0.03242174,101960.0,101950.0,1.15566445]
[1747104336287,0.01280699,101960.0,101950.0,1.15566445]
[1747104336520,0.003,101960.0,101950.0,1.25151875]
[1747104336775,0.03242137,101960.0,101950.0,1.25151875]
[1747104337012,0.03242118,101960.0,101950.0,1.25151875]
[1747104337431,0.003,101960.0,101950.0,1.25151875]
[1747104337890,0.01280699,101960.0,101950.0,1.25151875]
[1747104339690,0.03242127,101960.0,101950.0,1.25151875]
[1747104339902,0.04222874,101960.0,101950.0,1.25151875]
[1747104340360,0.02261408,101960.0,101950.0,1.34737305]
[1747104340579,0.0128069,101960.0,101950.0,1.34737305]
[1747104340833,0.003,101960.0,101950.0,1.34737305]
[1747104341743,0.003,101960.0,101950.0,1.68737305]
[1747104342387,0.002,101960.0,101950.0,1.68437305]
[1747104342650,0.003,101960.0,101950.0,1.68937305]
[1747104342890,0.002,101960.0,101950.0,1.68637305]
[1747104343123,0.003,101960.0,101950.0,1.68937305]
[1747104345330,0.01280709,101960.0,101950.0,1.59351875]
[1747104345516,0.01280699,101960.0,101950.0,1.59351875]
[1747104346068,0.003,101960.0,101950.0,1.59351875]
[1747104348625,0.003,101960.0,101950.0,1.79767875]
[1747104350312,0.003,101960.0,101950.0,1.38875875]
[1747104350557,0.003,101960.0,101950.0,1.89349305]
[1747104350776,0.00681053,101990.0,101980.0,0.24987955]
[1747104351007,0.00681053,101990.0,101980.0,0.62993301]
[1747104351235,0.01661454,101990.0,101980.0,0.62993301]
[1747104351460,0.11751893,102000.0,101990.0,0.24005197]
[1747104351701,0.00980315,102000.0,101990.0,0.52425113]
[1747104351914,0.01960505,102010.0,102000.0,0.23022644]
[1747104352129,0.03920933,102010.0,102000.0,0.50952884]
[1747104352376,0.20586196,102010.0,102000.0,0.01454085]
[1747104352616,0.20588225,102000.0,101990.0,0.66887766]
[1747104352828,0.22268588,102000.0,101990.0,0.68948684]
[1747104353039,0.2254898,102000.0,101990.0,0.69829124]
[1747104353258,0.2254898,102000.0,101990.0,0.70809554]
[1747104353479,0.2254898,102000.0,101990.0,0.80394984]
[1747104353916,0.2324898,102000.0,101990.0,0.80494984]
[1747104354146,0.2324898,102000.0,101990.0,0.79514554]
[1747104354578,0.2324898,102000.0,101990.0,0.80494984]
[1747104354784,0.2394898,102000.0,101990.0,0.80594984]
[1747104356643,0.04341137,102000.0,101990.0,0.80594984]
[1747104356843,0.03360697,102000.0,101990.0,0.83105404]
[1747104357053,0.014,102000.0,101990.0,0.94340834]
[1747104357474,0.014,102000.0,101990.0,1.1972075]
[1747104357695,0.014,102000.0,101990.0,0.94340834]
[1747104357869,0.007,102000.0,101990.0,0.94240834]
[1747104358308,0.008,102000.0,101990.0,0.94240834]
[1747104358538,0.008,102000.0,101990.0,1.4005675]
[1747104358679,0.007,102000.0,101990.0,1.14676834]
[1747104359389,0.00980219,102010.0,102000.0,0.25728902]
[1747104359603,0.00980219,102010.0,102000.0,0.70279678]
[1747104359817,0.23524722,102020.0,102010.0,0.23020529]
[1747104360026,0.23524722,102020.0,102010.0,0.48400445]
[1747104360460,0.02940445,102020.0,102010.0,0.50990673]
[1747104360691,0.23524634,102020.0,102010.0,0.22040281]
[1747104360914,0.22544502,102020.0,102010.0,0.23020548]
[1747104361126,0.01960255,102020.0,102010.0,0.24981033]
[1747104361346,0.007,102020.0,102010.0,0.83676379]
[1747104361561,0.007,102020.0,102010.0,0.93261809]
[1747104361790,0.014,102020.0,102010.0,0.94353799]
[1747104362029,0.02380132,102020.0,102010.0,0.94353799]
[1747104362461,0.03640463,102020.0,102010.0,0.94253799]
[1747104362699,0.2341433,102020.0,102010.0,0.01454085]
[1747104362917,0.1960592,102010.0,102000.0,0.41028235]
[1747104363132,0.21566483,102010.0,102000.0,0.40047843]
[1747104363343,0.21566483,102010.0,102000.0,0.424823]
[1747104363560,0.21566483,102010.0,102000.0,0.21894085]
[1747104363794,0.23146483,102010.0,102000.0,0.01454085]
[1747104364031,0.23146483,102010.0,101980.0,0.71683222]
[1747104364032,0.01960831,101990.0,101980.0,0.71683222]
[1747104364251,0.01960821,101990.0,101980.0,1.30868732]
[1747104364471,0.01960821,101990.0,101980.0,1.66322817]
[1747104364700,0.01960716,102000.0,101990.0,0.24005197]
[1747104364921,0.01960716,102000.0,101990.0,0.51912326]
[1747104365139,0.01960716,102000.0,101990.0,0.61497756]
[1747104365557,0.01960659,102000.0,101990.0,0.63117756]
[1747104365762,0.02941022,102000.0,101990.0,0.63117756]
[1747104366203,0.23529257,102000.0,101990.0,0.58967336]
[1747104366632,0.23529257,102000.0,101990.0,0.60347776]
[1747104367040,0.23529257,102000.0,101990.0,0.50762346]
[1747104367298,0.23529257,102000.0,101990.0,0.48801457]
[1747104367544,0.23529257,102000.0,101990.0,0.01854085]
[1747104367545,0.21568598,102000.0,101990.0,0.01854085]
[1747104367809,0.21568598,102000.0,101990.0,0.008]
[1747104367810,0.23738235,102000.0,101990.0,0.008]
[1747104368483,0.33323665,102000.0,101990.0,0.008]
[1747104370934,0.22168235,102000.0,101990.0,0.21390253]
[1747104371104,0.22168235,102000.0,101990.0,0.008]
[1747104371517,0.22168235,102000.0,101990.0,0.21390243]
[1747104371763,0.20588235,102000.0,101990.0,0.20409765]
[1747104372002,0.574953,102010.0,102000.0,0.20588235]
[1747104372225,0.1026481,102010.0,101990.0,0.49204597]
[1747104372445,0.24206329,102010.0,102000.0,0.46948494]
[1747104372663,0.00980219,102010.0,102000.0,0.46948494]
[1747104372880,0.02940724,102010.0,102000.0,0.49568818]
[1747104373060,0.02940724,102010.0,102000.0,0.49568838]
[1747104373061,0.04901296,102010.0,102000.0,0.49568838]
[1747104373486,0.04121,102010.0,102000.0,0.50549162]
[1747104373635,0.05101286,102010.0,102000.0,0.49568838]
[1747104373843,0.05301363,102010.0,102000.0,0.50549172]
[1747104374046,0.02360505,102010.0,102000.0,0.61114926]
[1747104374450,0.03340781,102010.0,102000.0,0.61114926]
[1747104374824,0.02360457,102010.0,102000.0,0.62569011]
[1747104375038,0.03340666,102010.0,102000.0,0.64089011]
[1747104375300,0.004,102010.0,102000.0,0.64089011]
[1747104375693,0.02160447,102010.0,102000.0,1.04089011]
[1747104376112,0.01960447,102010.0,102000.0,1.04089011]
[1747104376316,0.01960447,102010.0,102000.0,1.04489011]
[1747104377607,0.01960447,102010.0,102000.0,1.04889011]
[1747104378020,0.01960437,102010.0,102000.0,1.04889011]
[1747104378240,0.01960274,102020.0,102010.0,0.22546721]
[1747104378438,0.02940426,102020.0,102010.0,0.60082295]
[1747104378594,0.02940436,102020.0,102010.0,0.6153638]
[1747104378985,0.03920606,102020.0,102010.0,0.36156464]
[1747104379192,0.02940426,102020.0,102010.0,0.6153638]
[1747104379393,0.04320606,102020.0,102010.0,0.6153638]
[1747104379525,0.03340426,102020.0,102010.0,0.6313638]
[1747104379739,0.03340436,102020.0,102010.0,0.6313638]
[1747104379966,0.04320616,102020.0,102010.0,0.6313638]
[1747104380141,0.03340436,102020.0,102010.0,0.6313638]
[1747104380333,0.004,102020.0,102010.0,0.6313638]
[1747104380537,0.01380113,102020.0,102010.0,0.6313638]
[1747104380739,0.03340387,102020.0,102010.0,0.6313638]
[1747104380959,0.03340378,102020.0,102010.0,0.8354838]
[1747104381351,0.01380113,102020.0,102010.0,0.8354838]
[1747104381853,0.02360245,102020.0,102010.0,0.8354838]
[1747104382347,0.004,102020.0,102010.0,0.9313381]
[1747104383569,0.004,102020.0,102010.0,1.3313381]
[1747104384434,0.004,102020.0,102010.0,1.5354181]
[1747104384643,0.004,102020.0,102010.0,1.8754181]
[1747104385268,0.002,102020.0,102010.0,1.8754181]
[1747104385474,0.002,102020.0,102010.0,1.8774181]
[1747104385685,0.01959947,102040.0,102030.0,0.01454085]
[1747104385883,0.22540101,102040.0,102030.0,0.52623058]
[1747104386119,0.22540101,102040.0,102030.0,0.50907059]
[1747104386351,0.22540101,102040.0,102030.0,0.25527143]
[1747104386799,0.22540101,102040.0,102030.0,0.29047225]
[1747104386800,0.01959947,102040.0,102030.0,0.29047225]
[1747104387003,0.02208679,102040.0,102030.0,0.29064886]
[1747104387215,0.02208622,102040.0,102030.0,0.30044922]
[1747104387422,0.03188601,102040.0,102030.0,0.30044922]
[1747104387917,0.04368589,102040.0,102030.0,0.30044922]
[1747104388136,0.04368589,102040.0,102030.0,0.56974838]
[1747104388137,0.00448732,102040.0,102030.0,0.56974838]
[1747104388356,0.00448732,102040.0,102030.0,1.12352184]
[1747104388578,0.00448732,102040.0,102030.0,1.32752184]
[1747104389320,0.00248732,102040.0,102030.0,1.32752184]
[1747104389521,0.00248732,102040.0,102030.0,1.33152184]
[1747104389764,0.00048732,102040.0,102030.0,1.33152184]
[1747104389971,0.00048732,102040.0,102030.0,1.33552184]
[1747104391185,0.00048732,102040.0,102030.0,1.08172268]
[1747104391588,0.00048732,102040.0,102030.0,1.33552184]
[1747104391827,0.00048732,102040.0,102030.0,1.73552184]
[1747104392184,0.00048732,102040.0,102030.0,2.07552184]
[1747104393204,0.00048732,102040.0,102030.0,2.07152184]
[1747104393390,0.00048732,102040.0,102030.0,2.06752184]
[1747104393599,0.00248732,102040.0,102030.0,2.08152184]
[1747104397772,0.00248732,102040.0,102030.0,1.41960268]
[1747104398020,0.02208584,102040.0,102030.0,1.82752268]
[1747104398222,0.23768687,102040.0,102030.0,1.59424121]
[1747104398440,0.05148538,102040.0,102030.0,1.32894325]
[1747104398637,0.22788842,102040.0,102030.0,0.62801697]
[1747104398779,0.24408842,102040.0,102030.0,0.84363971]
[1747104399151,0.23948895,102040.0,102030.0,0.64255782]
[1747104399341,0.23948895,102040.0,102030.0,0.014]